lending/lending_fUSD_20250819
["ID","MTS","AMOUNT","RATE_DAILY","PERIOD"]
[380276310,1755631080856,-400.0,0.00025191,30]
[380276311,1755631080884,-400.0,0.00025191,30]
[380276312,1755631080911,-1249.51,0.00025191,30]
[380276313,1755631080938,-400.0,0.00025191,30]
[380276314,1755631081411,-400.0,0.00025191,30]
[380276315,1755631081444,-557.23,0.00025191,30]
[380276316,1755631081472,-503.04,0.00025191,30]
[380276317,1755631081498,-745.22,0.00025191,30]
[380276318,1755631081526,-804.51,0.00025191,30]
[380276319,1755631081553,-400.0,0.00025191,30]
[380276320,1755631081581,-400.0,0.00025191,30]
[380276322,1755631081608,-466.38,0.00025191,30]
[380276323,1755631081636,-1250.28,0.00025191,30]
[380276324,1755631081663,-866.17,0.00025191,30]
[380276325,1755631081690,-664.23,0.00025191,30]
[380276326,1755631081717,-493.13733288,0.00025191,30]
[380276327,1755631081744,-2158.15,0.00025191,30]
[380276328,1755631081773,-509.99,0.00025191,30]
[380276329,1755631081802,-481.8,0.00025191,30]
[380276330,1755631081828,-400.0,0.00025191,30]
[380276331,1755631081856,-400.0,0.00025191,30]
[380276332,1755631081883,-400.0,0.00025191,30]
[380276333,1755631081910,-400.0,0.00025191,30]
[380276334,1755631081937,-400.0,0.00025191,30]
[380276335,1755631081964,-400.0,0.00025191,30]
[380276336,1755631081990,-413.19,0.00025191,30]
[380276337,1755631082017,-400.0,0.00025191,30]
[380276338,1755631082045,-400.0,0.00025191,30]
[380276339,1755631082073,-855.55,0.00025191,30]
[380276340,1755631082103,-601.39,0.00025191,30]
[380276341,1755631082130,-400.0,0.00025191,30]
[380276342,1755631082159,-2280.39,0.00025191,30]
[380276343,1755631082186,-975.51,0.00025191,30]
[380276344,1755631082213,-400.0,0.00025191,30]
[380276345,1755631082240,-400.0,0.00025191,30]
[380276346,1755631082267,-1840.1,0.00025191,30]
[380276347,1755631082296,-400.0,0.00025191,30]
[380276348,1755631082324,-517.95,0.00025191,30]
[380276349,1755631082356,-1486.54,0.00025191,30]
[380276350,1755631082383,-2077.7,0.00025191,30]
[380276351,1755631082410,-400.0,0.00025191,30]
[380276352,1755631082436,-2093.14,0.00025191,30]
[380276353,1755631082462,-400.0,0.00025191,30]
[380276354,1755631082488,-790.95,0.00025191,30]
[380276355,1755631082515,-1801.97,0.00025191,30]
[380276356,1755631082542,-962.38,0.00025191,30]
[380276357,1755631082568,-1485.42,0.00025191,30]
[380276358,1755631082598,-519.32634031,0.00025191,30]
[380276359,1755631082623,-400.0,0.00025191,30]
[380276360,1755631082649,-1374.41,0.00025191,30]
[380276361,1755631082675,-400.0,0.00025191,30]
[380276362,1755631082704,-400.0,0.00025191,30]
[380276363,1755631082731,-1008.89,0.00025191,30]
[380276364,1755631082760,-935.31,0.00025191,30]
[380276365,1755631082786,-400.0,0.00025191,30]
[380276366,1755631082813,-734.31,0.00025191,30]
[380276367,1755631082840,-543.43,0.00025191,30]
[380276368,1755631082866,-760.31,0.00025191,30]
[380276369,1755631082892,-400.0,0.00025191,30]
[380276370,1755631082918,-588.82,0.00025191,30]
[380276371,1755631082947,-498.35,0.00025191,30]
[380276372,1755631082974,-400.0,0.00025191,30]
[380276373,1755631083000,-1209.49,0.00025191,30]
[380276374,1755631083031,-400.0,0.00025191,30]
[380276375,1755631083061,-400.0,0.00025191,30]
[380276376,1755631083089,-1158.12,0.00025191,30]
[380276377,1755631083120,-845.97,0.00025191,30]
[380276378,1755631083151,-1453.42,0.00025191,30]
[380276379,1755631083181,-1268.36,0.00025191,30]
[380276380,1755631083210,-400.0,0.00025191,30]
[380276381,1755631083248,-838.71,0.00025191,30]
[380276382,1755631083282,-400.0,0.00025191,30]
[380276383,1755631083318,-553.19,0.00025191,30]
[380276384,1755631083351,-2377.86,0.00025191,30]
[380276385,1755631083382,-656.71,0.00025191,30]
[380276386,1755631083410,-1003.6,0.00025191,30]
[380276387,1755631083438,-575.64,0.00025191,30]
[380276388,1755631083467,-890.27,0.00025191,30]
[380276389,1755631083495,-400.0,0.00025191,30]
[380276390,1755631083523,-400.0,0.00025191,30]
[380276391,1755631083550,-400.0,0.00025191,30]
[380276392,1755631083577,-887.1,0.00025191,30]
[380276393,1755631083607,-1586.0,0.00025191,30]
[380276394,1755631083634,-400.0,0.00025191,30]
[380276395,1755631083661,-400.0,0.00025191,30]
[380276396,1755631083689,-468.86,0.00025191,30]
[380276397,1755631083719,-400.0,0.00025191,30]
[380276398,1755631083747,-665.78,0.00025191,30]
[380276399,1755631083778,-1245.26,0.00025191,30]
[380276400,1755631083809,-400.0,0.00025191,30]
[380276401,1755631083843,-400.0,0.00025191,30]
[380276402,1755631083875,-1571.68,0.00025191,30]
[380276403,1755631083906,-400.0,0.00025191,30]
[380276404,1755631083936,-400.0,0.00025191,30]
[380276405,1755631083966,-400.0,0.00025191,30]
[380276406,1755631083993,-400.0,0.00025191,30]
[380276407,1755631084022,-734.99,0.00025191,30]
[380276408,1755631084050,-1550.01,0.00025191,30]
[380276409,1755631084079,-953.11,0.00025191,30]
[380276410,1755631084374,-486.58,0.00025191,30]
[380276411,1755631084403,-400.0,0.00025191,30]
[380276412,1755631084434,-987.13,0.00025191,30]
[380276413,1755631084469,-713.66,0.00025191,30]
[380276414,1755631084498,-1769.53,0.00025191,30]
[380276415,1755631084526,-1151.9,0.00025191,30]
[380276416,1755631084554,-1484.23,0.00025191,30]
[380276417,1755631084585,-1462.98,0.00025191,30]
[380276418,1755631084612,-400.0,0.00025191,30]
[380276419,1755631084639,-400.0,0.00025191,30]
[380276420,1755631084665,-584.29,0.00025191,30]
[380276421,1755631084695,-400.0,0.00025191,30]
[380276422,1755631084722,-400.0,0.00025191,30]
[380276423,1755631084752,-1790.8,0.00025191,30]
[380276424,1755631084781,-1524.7,0.00025191,30]
[380276425,1755631084809,-644.07,0.00025191,30]
[380276426,1755631084839,-1873.68,0.00025191,30]
[380276427,1755631084867,-400.0,0.00025191,30]
[380276428,1755631084894,-1158.18,0.00025191,30]
[380276429,1755631084920,-400.0,0.00025191,30]
[380276430,1755631084948,-400.0,0.00025191,30]
[380276431,1755631084977,-1809.01,0.00025191,30]
[380276432,1755631085007,-400.0,0.00025191,30]
[380276433,1755631085036,-846.47,0.00025191,30]
[380276434,1755631085066,-490.99,0.00025191,30]
[380276435,1755631085097,-1217.18,0.00025191,30]
[380276436,1755631085128,-400.0,0.00025191,30]
[380276437,1755631085158,-400.0,0.00025191,30]
[380276438,1755631085187,-1996.2,0.00025191,30]
[380276439,1755631085217,-515.68137149,0.00025191,30]
[380276440,1755631085246,-593.75,0.00025191,30]
[380276441,1755631085275,-861.27,0.00025191,30]
[380276442,1755631085303,-400.0,0.00025191,30]
[380276443,1755631085331,-1189.14,0.00025191,30]
[380276444,1755631085363,-400.0,0.00025191,30]
[380276445,1755631085391,-422.52,0.00025191,30]
[380276446,1755631085419,-400.0,0.00025191,30]
[380276447,1755631085445,-400.0,0.00025191,30]
[380276448,1755631085473,-831.55,0.00025191,30]
[380276449,1755631085499,-801.03,0.00025191,30]
[380276450,1755631085527,-1627.46,0.00025191,30]
[380276451,1755631085553,-669.09,0.00025191,30]
[380276452,1755631085580,-712.93,0.00025191,30]
[380276453,1755631085610,-400.0,0.00025191,30]
[380276454,1755631085638,-400.0,0.00025191,30]
[380276455,1755631085665,-400.0,0.00025191,30]
[380276456,1755631085692,-666.25,0.00025191,30]
[380276457,1755631085719,-739.46,0.00025191,30]
[380276458,1755631085744,-400.0,0.00025191,30]
[380276459,1755631085772,-1590.45,0.00025191,30]
[380276460,1755631085799,-575.07,0.00025191,30]
[380276461,1755631085827,-498.22,0.00025191,30]
[380276462,1755631085858,-400.0,0.00025191,30]
[380276463,1755631085885,-400.0,0.00025191,30]
[380276464,1755631085915,-590.81,0.00025191,30]
[380276465,1755631085942,-752.39,0.00025191,30]
[380276466,1755631085969,-463.19,0.00025191,30]
[380276467,1755631085996,-400.0,0.00025191,30]
[380276468,1755631086022,-400.0,0.00025191,30]
[380276469,1755631086049,-1227.79,0.00025191,30]
[380276470,1755631086076,-400.0,0.00025191,30]
[380276471,1755631086105,-400.0,0.00025191,30]
[380276472,1755631086132,-400.0,0.00025191,30]
[380276473,1755631086159,-944.83,0.00025191,30]
[380276474,1755631086187,-400.0,0.00025191,30]
[380276475,1755631086214,-400.0,0.00025191,30]
[380276476,1755631086241,-1252.64,0.00025191,30]
[380276477,1755631086267,-1348.48,0.00025191,30]
[380276478,1755631086294,-2011.64,0.00025191,30]
[380276479,1755631086320,-400.0,0.00025191,30]
[380276480,1755631086347,-771.77,0.00025191,30]
[380276481,1755631086377,-400.0,0.00025191,30]
[380276482,1755631086410,-188.04804533,0.00025191,30]
[380276483,1755631086443,-1004.69,0.00025191,30]
[380276484,1755631086477,-400.0,0.00025191,30]
[380276485,1755631086511,-400.0,0.00025191,30]
[380276486,1755631086542,-400.0,0.00025191,30]
[380276487,1755631086570,-759.13,0.00025191,30]
[380276488,1755631086598,-1766.6,0.00025191,30]
[380276489,1755631086625,-764.46,0.00025191,30]
[380276490,1755631086652,-1321.22,0.00025191,30]
[380276491,1755631086678,-400.0,0.00025191,30]
[380276492,1755631086705,-574.26,0.00025191,30]
[380276493,1755631086731,-400.0,0.00025191,30]
[380276494,1755631086758,-414.53,0.00025191,30]
[380276495,1755631086784,-1609.98,0.00025191,30]
[380276496,1755631086812,-1988.32,0.00025191,30]
[380276497,1755631086841,-400.0,0.00025191,30]
[380276498,1755631086867,-400.0,0.00025191,30]
[380276499,1755631086902,-400.0,0.00025191,30]
[380276500,1755631086936,-633.22,0.00025191,30]
[380276501,1755631086964,-368.25706389,0.00025191,30]
[380276502,1755631086990,-400.0,0.00025191,30]
[380276503,1755631087017,-1129.6,0.00025191,30]
[380276504,1755631087044,-400.0,0.00025191,30]
[380276505,1755631087443,-704.57,0.00025191,30]
[380276506,1755631087472,-1389.72,0.00025191,30]
[380276507,1755631087501,-1626.22,0.00025191,30]
[380276508,1755631087530,-400.0,0.00025191,30]
[380276509,1755631087558,-402.52,0.00025191,30]
[380276510,1755631087590,-758.46,0.00025191,30]
[380276511,1755631087619,-646.97,0.00025191,30]
[380276512,1755631087651,-1978.37,0.00025191,30]
[380276513,1755631087682,-1713.52,0.00025191,30]
[380276514,1755631087713,-988.17,0.00025191,30]
[380276515,1755631087744,-452.3,0.00025191,30]
[380276516,1755631087785,-1178.32,0.00025191,30]
[380276517,1755631087828,-400.0,0.00025191,30]
[380276518,1755631087873,-474.04,0.00025191,30]
[380276519,1755631087911,-400.0,0.00025191,30]
[380276520,1755631087949,-400.0,0.00025191,30]
[380276521,1755631087982,-400.0,0.00025191,30]
[380276522,1755631088015,-843.54,0.00025191,30]
[380276523,1755631088048,-170.60731009,0.00025191,30]
[380276524,1755631088081,-400.0,0.00025191,30]
[380276525,1755631088114,-2339.85,0.00025191,30]
[380276526,1755631088147,-400.0,0.00025191,30]
[380276527,1755631088179,-1431.42,0.00025191,30]
[380276528,1755631088208,-400.0,0.00025191,30]
[380276529,1755631088237,-1879.73,0.00025191,30]
[380276530,1755631088266,-400.0,0.00025191,30]
[380276531,1755631088294,-1003.58,0.00025191,30]
[380276532,1755631088327,-781.97,0.00025191,30]
[380276533,1755631088368,-667.84,0.00025191,30]
[380276534,1755631088405,-400.0,0.00025191,30]
[380276535,1755631088438,-657.01,0.00025191,30]
[380276536,1755631088469,-400.0,0.00025191,30]
[380276538,1755631088501,-400.0,0.00025191,30]
[380276539,1755631088536,-1626.0,0.00025191,30]
[380276540,1755631088568,-400.0,0.00025191,30]
[380276541,1755631088609,-762.72,0.00025191,30]
[380276542,1755631088638,-400.0,0.00025191,30]
[380276543,1755631088668,-812.96,0.00025191,30]
[380276544,1755631088698,-812.84,0.00025191,30]
[380276545,1755631088731,-400.0,0.00025191,30]
[380276546,1755631088764,-400.0,0.00025191,30]
[380276547,1755631088797,-400.0,0.00025191,30]
[380276548,1755631088827,-400.0,0.00025191,30]
[380276549,1755631088867,-912.15,0.00025191,30]
[380276550,1755631088898,-1867.16,0.00025191,30]
[380276551,1755631088929,-927.26,0.00025191,30]
[380276552,1755631088959,-400.0,0.00025191,30]
[380276553,1755631088988,-1264.15,0.00025191,30]
[380276554,1755631089017,-1147.83,0.00025191,30]
[380276555,1755631089047,-822.45,0.00025191,30]
[380276556,1755631089075,-400.0,0.00025191,30]
[380276557,1755631089111,-2642.11,0.00025191,30]
[380276558,1755631089143,-341.81330621,0.00025191,30]
[380276559,1755631089173,-437.64,0.00025191,30]
[380276560,1755631089204,-400.0,0.00025191,30]
[380276561,1755631089235,-854.72,0.00025191,30]
[380276562,1755631089266,-400.0,0.00025191,30]
[380276563,1755631089297,-531.2,0.00025191,30]
[380276564,1755631089328,-400.0,0.00025191,30]
[380276565,1755631089368,-888.25,0.00025191,30]
[380276566,1755631089399,-842.32,0.00025191,30]
[380276567,1755631089428,-1920.95,0.00025191,30]
[380276568,1755631089459,-1843.66,0.00025191,30]
[380276569,1755631089489,-589.48,0.00025191,30]
[380276570,1755631089520,-1357.11,0.00025191,30]
[380276571,1755631089552,-1090.36,0.00025191,30]
[380276572,1755631089580,-400.0,0.00025191,30]
[380276573,1755631089612,-400.0,0.00025191,30]
[380276574,1755631089640,-733.36,0.00025191,30]
[380276575,1755631089667,-2339.92,0.00025191,30]
[380276576,1755631089694,-400.0,0.00025191,30]
[380276577,1755631089722,-400.0,0.00025191,30]
[380276578,1755631089750,-1713.64,0.00025191,30]
[380276579,1755631089778,-530.76,0.00025191,30]
[380276580,1755631089806,-400.0,0.00025191,30]
[380276581,1755631089836,-400.0,0.00025191,30]
[380276582,1755631089872,-594.02,0.00025191,30]
[380276583,1755631089902,-2161.34,0.00025191,30]
[380276584,1755631089930,-785.37,0.00025191,30]
[380276585,1755631089958,-925.07,0.00025191,30]
[380276586,1755631089987,-400.0,0.00025191,30]
[380276587,1755631090017,-1533.15,0.00025191,30]
[380276588,1755631090044,-1481.14,0.00025191,30]
[380276589,1755631090074,-400.0,0.00025191,30]
[380276590,1755631090104,-400.0,0.00025191,30]
[380276591,1755631090133,-424.97,0.00025191,30]
[380276592,1755631090163,-2049.37,0.00025191,30]
[380276593,1755631090190,-400.0,0.00025191,30]
[380276594,1755631090218,-535.14,0.00025191,30]
[380276595,1755631090246,-2172.05,0.00025191,30]
[380276596,1755631090275,-400.0,0.00025191,30]
[380276597,1755631090303,-1532.6,0.00025191,30]
[380276598,1755631090331,-831.55,0.00025191,30]
[380276599,1755631090365,-853.09,0.00025191,30]
[380276600,1755631090394,-1512.48,0.00025191,30]
[380276601,1755631090748,-400.0,0.00025191,30]
[380276602,1755631090780,-757.23,0.00025191,30]
[380276603,1755631090810,-296.72317462,0.00025191,30]
[380276604,1755631090840,-834.74,0.00025191,30]
[380276605,1755631090869,-528.08,0.00025191,30]
[380276606,1755631090896,-400.0,0.00025191,30]
[380276607,1755631090927,-1466.98,0.00025191,30]
[380276608,1755631090956,-1667.74,0.00025191,30]
[380276609,1755631090983,-851.95,0.00025191,30]
[380276610,1755631091010,-400.0,0.00025191,30]
[380276611,1755631091037,-400.0,0.00025191,30]
[380276612,1755631091065,-585.37,0.00025191,30]
[380276613,1755631091093,-1678.23,0.00025191,30]
[380276614,1755631091123,-500.95,0.00025191,30]
[380276615,1755631091151,-400.0,0.00025191,30]
[380276616,1755631091178,-990.17,0.00025191,30]
[380276617,1755631091207,-1498.02,0.00025191,30]
[380276618,1755631091236,-414.92,0.00025191,30]
[380276619,1755631091265,-490.9,0.00025191,30]
[380276620,1755631091293,-837.81,0.00025191,30]
[380276621,1755631091321,-684.54,0.00025191,30]
[380276622,1755631091349,-400.0,0.00025191,30]
[380276623,1755631091378,-916.66,0.00025191,30]
[380276624,1755631091406,-1483.77,0.00025191,30]
[380276625,1755631091433,-2023.25,0.00025191,30]
[380276626,1755631091460,-400.0,0.00025191,30]
[380276627,1755631091488,-827.87,0.00025191,30]
[380276628,1755631091515,-400.0,0.00025191,30]
[380276629,1755631091543,-1863.32,0.00025191,30]
[380276630,1755631091569,-1962.6,0.00025191,30]
[380276631,1755631091597,-539.12,0.00025191,30]
[380276632,1755631091625,-1489.75,0.00025191,30]
[380276633,1755631091654,-804.37,0.00025191,30]
[380276634,1755631091681,-1279.96,0.00025191,30]
[380276635,1755631091707,-879.44,0.00025191,30]
[380276636,1755631091733,-400.0,0.00025191,30]
[380276637,1755631091763,-736.46,0.00025191,30]
[380276638,1755631091790,-400.0,0.00025191,30]
[380276639,1755631091818,-3004.1,0.00025191,30]
[380276640,1755631091846,-903.83,0.00025191,30]
[380276641,1755631091872,-400.0,0.00025191,30]
[380276642,1755631091898,-540.41,0.00025191,30]
[380276643,1755631091925,-400.0,0.00025191,30]
[380276644,1755631091953,-452.13,0.00025191,30]
[380276645,1755631091980,-768.98,0.00025191,30]
[380276646,1755631092007,-1813.68,0.00025191,30]
[380276647,1755631092034,-400.0,0.00025191,30]
[380276648,1755631092063,-400.0,0.00025191,30]
[380276649,1755631092099,-2223.82,0.00025191,30]
[380276650,1755631092129,-400.0,0.00025191,30]
[380276651,1755631092158,-400.0,0.00025191,30]
[380276652,1755631092187,-2140.5,0.00025191,30]
[380276653,1755631092216,-762.55,0.00025191,30]
[380276654,1755631092244,-447.68,0.00025191,30]
[380276655,1755631092271,-2258.26,0.00025191,30]
[380276656,1755631092299,-400.0,0.00025191,30]
[380276657,1755631092325,-400.0,0.00025191,30]
[380276658,1755631092358,-666.94,0.00025191,30]
[380276659,1755631092385,-400.0,0.00025191,30]
[380276660,1755631092412,-400.0,0.00025191,30]
[380276661,1755631092438,-400.0,0.00025191,30]
[380276662,1755631092468,-699.19,0.00025191,30]
[380276663,1755631092494,-786.12,0.00025191,30]
[380276664,1755631092522,-1078.83,0.00025191,30]
[380276665,1755631092548,-400.0,0.00025191,30]
[380276666,1755631092574,-685.74,0.00025191,30]
[380276667,1755631092604,-686.36,0.00025191,30]
[380276668,1755631092629,-1514.98,0.00025191,30]
[380276669,1755631092654,-400.0,0.00025191,30]
[380276670,1755631092680,-400.0,0.00025191,30]
[380276671,1755631092707,-400.0,0.00025191,30]
[380276672,1755631092733,-783.3,0.00025191,30]
[380276673,1755631092760,-267.21168825,0.00025191,30]
[380276674,1755631092790,-927.22,0.00025191,30]
[380276675,1755631092816,-858.73,0.00025191,30]
[380276676,1755631092846,-463.57,0.00025191,30]
[380276677,1755631092875,-638.06,0.00025191,30]
[380276678,1755631092901,-1217.67,0.00025191,30]
[380276679,1755631092927,-1055.26,0.00025191,30]
[380276680,1755631092955,-617.22,0.00025191,30]
[380276681,1755631092981,-654.88,0.00025191,30]
[380276682,1755631093008,-927.42,0.00025191,30]
[380276683,1755631093035,-400.0,0.00025191,30]
[380276684,1755631093062,-877.36,0.00025191,30]
[380276685,1755631093089,-1451.41,0.00025191,30]
[380276686,1755631093120,-400.0,0.00025191,30]
[380276687,1755631093147,-774.15,0.00025191,30]
[380276688,1755631093173,-755.17,0.00025191,30]
[380276689,1755631093200,-1269.4,0.00025191,30]
[380276690,1755631093227,-850.21,0.00025191,30]
[380276691,1755631093254,-400.0,0.00025191,30]
[380276692,1755631093281,-1574.07,0.00025191,30]
[380276693,1755631093307,-400.0,0.00025191,30]
[380276694,1755631093334,-400.0,0.00025191,30]
[380276695,1755631093366,-893.8,0.00025191,30]
[380276696,1755631093637,-1796.62,0.00025191,30]
[380276697,1755631093667,-2151.13,0.00025191,30]
[380276698,1755631093698,-400.0,0.00025191,30]
[380276699,1755631093727,-400.0,0.00025191,30]
[380276700,1755631093756,-400.0,0.00025191,30]
[380276701,1755631093790,-1524.91,0.00025191,30]
[380276702,1755631093821,-400.0,0.00025191,30]
[380276703,1755631093853,-1268.61,0.00025191,30]
[380276704,1755631093882,-3537.65,0.00025191,30]
[380276705,1755631093911,-400.0,0.00025191,30]
[380276706,1755631093939,-632.78,0.00025191,30]
[380276707,1755631093967,-1091.34,0.00025191,30]
[380276708,1755631093996,-1777.71,0.00025191,30]
[380276709,1755631094023,-1517.91,0.00025191,30]
[380276710,1755631094054,-400.0,0.00025191,30]
[380276711,1755631094087,-400.0,0.00025191,30]
[380276712,1755631094125,-603.15,0.00025191,30]
[380276713,1755631094157,-737.73,0.00025191,30]
[380276714,1755631094190,-759.41,0.00025191,30]
[380276715,1755631094222,-2887.56,0.00025191,30]
[380276716,1755631094251,-1092.33,0.00025191,30]
[380276717,1755631094280,-400.0,0.00025191,30]
[380276718,1755631094309,-1154.89,0.00025191,30]
[380276719,1755631094336,-400.0,0.00025191,30]
[380276720,1755631094372,-400.0,0.00025191,30]
[380276721,1755631094401,-540.17,0.00025191,30]
[380276722,1755631094428,-1604.08,0.00025191,30]
[380276723,1755631094455,-400.0,0.00025191,30]
[380276724,1755631094482,-558.64,0.00025191,30]
[380276725,1755631094509,-464.91,0.00025191,30]
[380276726,1755631094536,-400.0,0.00025191,30]
[380276727,1755631094562,-400.0,0.00025191,30]
[380276728,1755631094588,-996.27,0.00025191,30]
[380276729,1755631094620,-1174.54,0.00025191,30]
[380276730,1755631094648,-400.0,0.00025191,30]
[380276731,1755631094676,-400.0,0.00025191,30]
[380276732,1755631094703,-467.39,0.00025191,30]
[380276733,1755631094731,-1287.79,0.00025191,30]
[380276734,1755631094760,-410.72,0.00025191,30]
[380276735,1755631094788,-645.33,0.00025191,30]
[380276736,1755631094816,-400.0,0.00025191,30]
[380276737,1755631094849,-400.0,0.00025191,30]
[380276738,1755631094880,-400.0,0.00025191,30]
[380276739,1755631094910,-400.0,0.00025191,30]
[380276740,1755631094939,-591.41,0.00025191,30]
[380276741,1755631094969,-400.0,0.00025191,30]
[380276742,1755631094998,-1211.51,0.00025191,30]
[380276743,1755631095028,-657.43,0.00025191,30]
[380276744,1755631095059,-1321.19,0.00025191,30]
[380276745,1755631095092,-2333.41,0.00025191,30]
[380276746,1755631095123,-3141.86,0.00025191,30]
[380276747,1755631095156,-441.64,0.00025191,30]
[380276748,1755631095188,-895.33,0.00025191,30]
[380276749,1755631095218,-1312.21,0.00025191,30]
[380276750,1755631095251,-610.43,0.00025191,30]
[380276751,1755631095282,-912.37,0.00025191,30]
[380276752,1755631095314,-5048.43,0.00025191,30]
[380276753,1755631095349,-2777.22,0.00025191,30]
[380276754,1755631095379,-2638.42,0.00025191,30]
[380276755,1755631095408,-542.11,0.00025191,30]
[380276756,1755631095437,-400.0,0.00025191,30]
[380276757,1755631095468,-854.75,0.00025191,30]
[380276758,1755631095496,-582.29,0.00025191,30]
[380276759,1755631095525,-2058.34,0.00025191,30]
[380276760,1755631095553,-807.81,0.00025191,30]
[380276761,1755631095583,-2108.39,0.00025191,30]
[380276762,1755631095618,-400.0,0.00025191,30]
[380276763,1755631095648,-2755.38,0.00025191,30]
[380276764,1755631095679,-3236.93,0.00025191,30]
[380276765,1755631095707,-494.07,0.00025191,30]
[380276766,1755631095735,-771.8,0.00025191,30]
[380276767,1755631095763,-1485.66,0.00025191,30]
[380276768,1755631095789,-201.50093074,0.00025191,30]
[380276769,1755631095819,-1688.58,0.00025191,30]
[380276770,1755631095851,-400.0,0.00025191,30]
[380276771,1755631095880,-2731.01,0.00025191,30]
[380276772,1755631095908,-716.5,0.00025191,30]
[380276773,1755631095935,-400.0,0.00025191,30]
[380276774,1755631095963,-1382.11,0.00025191,30]
[380276775,1755631095989,-2951.24,0.00025191,30]
[380276776,1755631096018,-408.32,0.00025191,30]
[380276777,1755631096045,-6757.75,0.00025191,30]
[380276778,1755631096075,-812.97,0.00025191,30]
[380276779,1755631096108,-1007.53,0.00025191,30]
[380276780,1755631096137,-1417.55,0.00025191,30]
[380276781,1755631096165,-400.0,0.00025191,30]
[380276782,1755631096193,-2420.72,0.00025191,30]
[380276783,1755631096221,-447.89,0.00025191,30]
[380276784,1755631096248,-632.73,0.00025191,30]
[380276785,1755631096276,-553.64,0.00025191,30]
[380276786,1755631096304,-744.53,0.00025191,30]
[380276787,1755631096332,-1672.31,0.00025191,30]
[380276788,1755631096365,-1648.48,0.00025191,30]
[380276789,1755631096397,-8716.72,0.00025191,30]
[380276790,1755631096668,-1174.9,0.00025191,30]
[380276791,1755631096700,-1247.73,0.00025191,30]
[380276792,1755631096730,-400.0,0.00025191,30]
[380276793,1755631096761,-2800.23,0.00025191,30]
[380276794,1755631096790,-400.0,0.00025191,30]
[380276795,1755631096819,-1855.67,0.00025191,30]
[380276796,1755631096850,-1549.4,0.00025191,30]
[380276797,1755631096879,-2735.6,0.00025191,30]
[380276798,1755631096907,-549.35,0.00025191,30]
[380276799,1755631096936,-1600.8,0.00025191,30]
[380276800,1755631096964,-1083.07,0.00025191,30]
[380276801,1755631096992,-2521.93,0.00025191,30]
[380276802,1755631097021,-407.03,0.00025191,30]
[380276803,1755631097050,-1663.82,0.00025191,30]
[380276804,1755631097079,-1863.39,0.00025191,30]
[380276805,1755631097110,-2006.03,0.00025191,30]
[380276806,1755631097140,-867.04,0.00025191,30]
[380276807,1755631097171,-1558.27,0.00025191,30]
[380276808,1755631097202,-1625.91,0.00025191,30]
[380276809,1755631097233,-3914.85,0.00025191,30]
[380276810,1755631097261,-801.03,0.00025191,30]
[380276811,1755631097289,-400.0,0.00025191,30]